bitfinex-derivatives/quotes_ETHF0:USTF0_20250530
["timestamp","ask_amount","ask_price","bid_price","bid_amount"]
[1748618638040,0.00571436,2608.5,2608.4,4.75062]
[1748618640334,0.00571436,2608.5,2608.4,6.05462]
[1748618640936,0.02072168,2608.8,2608.7,0.76653]
[1748618645747,0.78722168,2608.8,2608.7,3.983]
[1748618646348,0.76656,2608.6,2608.5,0.76658]
[1748618646748,0.76656,2608.6,2608.5,3.983]
[1748618646946,1.43056,2608.6,2608.5,3.983]
[1748618647747,2.65616,2608.6,2608.5,3.983]
[1748618648242,1.8896,2608.6,2608.5,4.74959]
[1748618648549,0.664,2608.6,2608.5,4.74959]
[1748618649444,0.02072168,2608.8,2608.7,0.76653]
[1748618650648,1.24632168,2608.8,2608.7,0.76653]
[1748618651945,1.24632168,2608.8,2608.5,3.983]
[1748618652246,1.24632168,2608.8,2608.7,0.76653]
[1748618652646,0.02072168,2608.8,2608.7,0.76653]
[1748618663051,3.97408,2609.6,2608.6,5.1291]
[1748618663256,0.6674,2609.4,2609.3,0.76636]
[1748618663456,0.6674,2609.4,2609.3,4.74836]
[1748618665156,3.97404,2609.7,2609.5,0.76627]
[1748618665357,3.97404,2609.7,2609.6,0.76627]
[1748618665546,4.54,2609.7,2609.6,0.76627]
[1748618665752,2.09844,2609.7,2609.6,0.76627]
[1748618665948,4.54,2609.7,2608.8,0.00575231]
[1748618666150,3.2078,2609.3,2608.8,0.00575231]
[1748618666448,3.2078,2609.0,2608.8,4.75324231]
[1748618666650,1.3192,2608.9,2608.8,4.75324231]
[1748618668750,2.08567,2608.9,2608.8,0.00575231]
[1748618668957,0.76663,2608.4,2608.0,1.3246]
[1748618669153,1.9216,2608.3,2608.2,0.76668]
[1748618670450,0.76669,2608.2,2608.0,0.00575231]
[1748618670759,1.2693,2608.1,2608.0,0.00575231]
[1748618670955,1.2693,2608.1,2608.0,0.77249231]
[1748618671465,1.2693,2608.1,2608.0,0.00575231]
[1748618671653,1.2693,2608.1,2608.0,0.77249231]
[1748618673864,5.24381,2608.1,2608.0,0.00575231]
[1748618674068,4.4771,2608.1,2608.0,0.77249231]
[1748618676866,5.24381,2608.1,2608.0,0.00575231]
[1748618678055,10.24381,2608.1,2608.0,0.00575231]
[1748618678256,10.24381,2608.1,2607.4,5.321]
[1748618678257,0.76681,2607.8,2607.7,0.76681]
[1748618678456,0.76675,2608.0,2607.5,1.9172]
[1748618678656,3.2078,2608.1,2608.0,0.76674]
[1748618678864,4.5209,2608.1,2608.0,0.76674]
[1748618679062,1.3131,2608.1,2608.0,0.76674]
[1748618680067,0.6374,2608.2,2608.0,0.76674]
[1748618680262,0.6374,2608.2,2608.1,0.76671]
[1748618682770,0.6374,2608.2,2608.0,0.76672]
[1748618682959,1.2446,2608.1,2607.8,3.98475231]
[1748618683164,1.2446,2608.1,2608.0,0.76674]
[1748618685875,1.2446,2608.1,2607.9,4.74575]
[1748618686061,4.4524,2608.1,2608.0,0.76674]
[1748618688373,0.6374,2608.2,2608.1,0.76671]
[1748618688678,3.2078,2608.4,2608.3,0.76665]
[1748618689277,3.2078,2608.4,2608.3,2.01345]
[1748618690384,0.00575231,2608.5,2608.4,0.76662]
[1748618690577,3.2078,2609.0,2608.9,0.76647]
[1748618691180,0.6291,2609.1,2609.0,0.76644]
[1748618693486,0.00575231,2609.3,2609.2,0.76638]
[1748618694082,0.00575231,2609.3,2609.2,4.74538]
[1748618695285,0.6197,2609.9,2609.8,0.76621]
[1748618696589,1.8995,2609.9,2609.8,0.76621]
[1748618698183,0.6197,2609.9,2609.8,0.76621]
[1748618698489,3.2078,2610.0,2609.9,0.76618]
[1748618700281,0.76622,2609.8,2609.6,0.77201231]
[1748618700481,1.9727,2609.9,2609.7,0.76624]
[1748618701387,1.9727,2609.9,2609.8,0.76621]
[1748618701588,1.9727,2609.9,2609.7,0.76622]
[1748618701792,2.73889,2609.9,2609.8,0.76621]
[1748618701978,0.6661,2609.8,2609.7,0.76622]
[1748618702182,1.9907,2609.8,2609.7,0.76622]
[1748618705279,1.9907,2609.8,2609.6,0.00575231]
[1748618705484,1.9907,2609.8,2609.7,0.76624]
[1748618705685,2.75693,2609.8,2609.7,0.76624]
[1748618705985,1.9907,2609.8,2609.6,0.00575231]
[1748618706188,1.9907,2609.8,2609.7,0.76624]
[1748618706585,0.6661,2609.8,2609.7,0.76624]
[1748618706885,1.2291,2610.3,2610.2,0.76609]
[1748618708190,1.99516,2610.3,2610.2,0.76609]
[1748618708491,1.2291,2610.3,2610.2,0.76609]
[1748618709403,1.236,2610.4,2610.3,0.76606]
[1748618709894,1.236,2610.4,2610.0,1.2892]
[1748618710192,0.76611,2610.2,2610.1,0.76611]
[1748618710389,3.97391,2610.2,2610.1,0.76611]
[1748618710594,1.91606,2609.1,2608.2,3.51483242]
[1748618710888,0.76651,2608.8,2608.7,0.76652]
[1748618711092,1.3047,2609.0,2608.5,3.972]
[1748618711293,1.3047,2609.0,2608.9,0.76647]
[1748618711491,0.31162535,2609.7,2609.4,0.7663]
[1748618711691,5.12195231,2609.8,2609.7,0.76624]
[1748618712003,5.77275231,2609.8,2609.7,0.57484]
[1748618712997,5.77275231,2609.8,2609.6,0.76626]
[1748618713296,0.76624,2609.7,2609.5,0.76627]
[1748618713497,1.249,2609.6,2609.5,0.76627]
[1748618713796,4.53125231,2609.8,2609.7,0.76624]
[1748618714292,3.21355231,2609.8,2609.7,0.76624]
[1748618714495,3.21355231,2609.8,2609.7,4.73824]
[1748618715199,3.21355231,2609.8,2609.7,5.95554]
[1748618716099,0.00575231,2609.8,2609.7,5.95554]
[1748618716795,3.2078,2610.4,2610.3,0.76606]
[1748618718393,4.4569,2610.4,2610.3,0.76606]
[1748618718696,0.6418,2610.5,2610.4,0.76603]
[1748618719002,3.8496,2610.5,2609.8,3.2078]
[1748618719300,3.2078,2610.2,2609.8,3.2078]
[1748618719499,1.2491,2610.1,2610.0,0.76615]
[1748618721401,3.2078,2610.2,2610.1,0.76612]
[1748618721595,0.6418,2610.5,2610.4,0.76603]
[1748618722193,3.2078,2610.7,2610.6,0.76597]
[1748618722800,3.97376,2610.7,2610.5,0.76598]
[1748618723006,2.6046,2610.6,2610.5,0.76598]
[1748618725707,1.2575,2610.6,2610.5,0.76598]
[1748618726500,6.2575,2610.6,2608.1,3.2078]
[1748618726806,3.2078,2607.9,2606.8,0.30603319]
[1748618727007,3.2078,2607.3,2607.2,6.63840133]
[1748618727305,3.97474,2607.3,2607.2,6.63840133]
[1748618727899,3.2078,2607.3,2607.0,0.00575231]
[1748618728207,8.2078,2607.3,2607.0,0.00575231]
[1748618728406,8.2078,2607.3,2606.1,4.186]
[1748618728607,3.2078,2606.5,2606.4,8.2621141]
[1748618728801,3.97498,2606.5,2606.4,4.4415741]
[1748618729005,0.76735,2605.9,2604.8,1.2316]
[1748618729206,3.2078,2605.0,2604.9,0.76764]
[1748618729912,3.2078,2605.0,2604.8,1.2316]
[1748618730116,3.2078,2605.0,2604.9,0.76765]
[1748618730511,0.00575231,2605.6,2605.5,0.76747]
[1748618732613,0.00575231,2605.6,2605.5,4.95647]
[1748618735114,0.00575231,2605.6,2605.5,0.76747]
[1748618735417,0.00575231,2605.6,2605.4,0.76748]
[1748618735608,0.00575231,2605.6,2605.3,4.19]
[1748618735806,0.00575231,2605.6,2605.5,0.76747]
[1748618736411,0.00575231,2605.6,2605.5,5.76747]
[1748618737412,3.2078,2606.5,2606.4,0.7672]
[1748618738121,3.2078,2606.5,2606.2,2.03425]
[1748618738322,3.2078,2606.5,2606.4,0.7672]
[1748618738520,1.32265231,2606.6,2606.5,0.76717]
[1748618738718,0.00575231,2606.6,2606.5,0.76717]
[1748618738915,0.00575231,2606.6,2606.3,1.267]
[1748618739220,3.97498,2606.5,2606.3,0.76722]
[1748618739413,3.2078,2606.5,2606.4,0.7672]
[1748618739616,3.2078,2606.5,2606.1,0.00575231]
[1748618739817,3.2078,2606.2,2606.1,0.77304231]
[1748618740325,3.2078,2606.2,2606.1,0.00575231]
[1748618740524,3.2078,2606.2,2606.1,0.77304231]
[1748618741020,3.3996,2606.2,2606.1,0.77304231]
[1748618741323,8.3996,2606.2,2605.6,0.76741]
[1748618741625,3.2078,2605.7,2605.6,0.76744]
[1748618741826,3.8329,2606.1,2606.0,0.76732]
[1748618742623,0.76735,2605.9,2605.8,0.77313231]
[1748618743023,0.76735,2605.9,2605.8,0.77310231]
[1748618743328,3.8329,2606.1,2605.9,0.76734]
[1748618743628,0.76735,2605.9,2605.8,0.77311231]
[1748618743936,0.76757,2605.2,2605.1,0.76757]
[1748618744227,3.97537,2605.2,2605.1,0.76758]
[1748618745323,3.2078,2605.2,2605.1,0.76758]
[1748618745523,3.97535,2605.2,2605.1,0.76758]
[1748618745820,3.2078,2605.2,2605.1,0.76758]
[1748618748228,3.2078,2605.2,2604.9,0.00575231]
[1748618748427,0.7676,2605.1,2605.0,0.76761]
[1748618748823,0.7676,2605.1,2604.9,0.00575231]
[1748618749029,0.7676,2605.1,2605.0,0.76761]
[1748618749233,3.2078,2605.2,2605.1,0.76758]
[1748618750826,0.00575231,2605.3,2605.2,0.76755]
[1748618752027,0.77327231,2605.3,2605.2,0.76755]
[1748618752825,2.20460696,2605.3,2605.2,0.76755]
[1748618753033,1.43708696,2605.3,2605.2,0.76755]
[1748618753329,2.20461696,2605.3,2605.2,0.76755]
[1748618755232,1.43708696,2605.3,2605.2,0.76755]
[1748618755728,2.27781723,2605.4,2605.3,0.76752]
[1748618755921,3.05608713,2605.8,2605.7,0.76741]
[1748618756730,0.00575231,2606.0,2605.7,0.76741]
[1748618756939,0.00575231,2606.0,2605.9,3.97515]
[1748618757231,0.1918,2606.2,2606.1,0.76729]
[1748618757427,0.1918,2606.2,2606.1,5.12229]
[1748618757828,3.05608713,2606.6,2606.5,0.76717]
[1748618758527,6.26963944,2606.8,2606.7,0.76711]
[1748618759135,3.21355231,2606.8,2606.7,0.76711]
[1748618759630,0.00575231,2606.8,2606.7,0.76711]
[1748618759932,0.00575231,2606.8,2606.7,2.08841]
[1748618760123,0.00575231,2606.8,2606.7,7.70351]
[1748618760535,0.00575231,2606.8,2606.7,2.70351]
[1748618760937,3.2078,2607.5,2607.3,0.76692]
[1748618761135,3.2078,2607.5,2607.4,0.76691]
[1748618762033,3.05608713,2607.7,2607.6,0.76685]
[1748618762236,0.7668,2607.8,2607.6,0.76685]
[1748618762433,3.2078,2607.9,2607.8,0.76679]
[1748618764141,4.4739,2608.2,2608.1,0.7667]
[1748618764444,3.2078,2608.2,2608.1,0.7667]
[1748618765336,1.971,2608.4,2608.3,0.76664]
[1748618767936,3.2078,2608.6,2608.5,0.76658]
[1748618768541,8.32624,2609.0,2608.9,0.76646]
[1748618768738,3.2078,2609.0,2608.5,1.91646]
[1748618768935,3.97426,2609.0,2608.9,0.76646]
[1748618769136,3.2078,2609.3,2609.2,0.76637]
[1748618770034,3.2078,2609.3,2609.1,0.76638]
[1748618770235,4.57103138,2609.3,2608.9,1.326]
[1748618770541,0.76639,2609.2,2609.1,0.76639]
[1748618770737,5.33739138,2609.3,2609.2,0.76637]
[1748618770935,3.97415,2609.3,2609.2,0.76637]
[1748618771134,3.2078,2609.3,2609.2,0.76637]
[1748618771439,0.76627,2609.6,2609.5,0.76629]
[1748618771629,3.2078,2609.7,2609.5,0.76629]
[1748618771835,0.7662,2609.9,2609.8,0.76618]
[1748618772644,2.1254046,2609.9,2609.8,0.76618]
[1748618772939,1.3592046,2609.9,2609.8,0.76618]
[1748618773442,3.2078,2610.0,2609.9,0.76617]
[1748618774143,3.97391,2610.1,2610.0,0.76611]
[1748618774336,3.97393,2610.1,2610.0,0.76614]
[1748618774536,0.76615,2610.0,2609.9,0.76615]
[1748618774733,3.2078,2610.1,2609.8,1.3414]
[1748618774940,3.97393,2610.1,2610.0,0.76614]
[1748618775141,0.76615,2610.0,2609.9,0.76615]
[1748618775343,3.97393,2610.1,2610.0,0.76614]
[1748618775548,3.97393,2610.1,2609.8,1.3414]
[1748618775746,3.97392,2610.1,2610.0,0.76614]
[1748618776245,3.2078,2610.1,2610.0,0.76614]
[1748618776446,3.97391,2610.1,2610.0,0.76614]
[1748618776939,0.76615,2610.0,2609.9,0.76615]
[1748618777144,3.97393,2610.1,2610.0,0.76614]
[1748618777542,0.76616,2610.0,2609.9,0.76616]
[1748618778043,3.2078,2610.1,2609.3,0.00575231]
[1748618778242,0.76626,2609.6,2609.5,2.02998]
[1748618779046,3.2078,2609.8,2609.5,1.2637]
[1748618779251,0.76625,2609.7,2609.6,0.76624]
[1748618779452,2.07675,2609.7,2609.5,2.02997]
[1748618779650,0.76632,2609.4,2609.3,0.00575231]
[1748618779951,0.76629,2609.5,2609.4,0.76631]
[1748618780151,3.97409,2609.6,2609.3,1.22145231]
[1748618780351,3.2078,2609.6,2609.5,0.76629]
[1748618780551,3.97406,2609.6,2609.5,0.76629]
[1748618781046,3.2078,2609.6,2609.5,0.76629]
[1748618781452,3.2078,2610.0,2609.9,0.76617]
[1748618782454,0.76612,2610.1,2610.0,0.76614]
[1748618782653,4.4765,2610.3,2609.9,0.76615]
[1748618782845,0.76614,2610.0,2609.9,0.76615]
[1748618783049,0.76617,2609.9,2609.8,2.047]
[1748618783340,0.76616,2610.0,2609.8,2.047]
[1748618783752,0.76616,2610.0,2609.9,0.76617]
[1748618784051,4.4765,2610.3,2609.8,1.2808]
[1748618784251,0.76609,2610.2,2609.8,1.2808]
[1748618784449,0.76612,2610.1,2609.8,1.2808]
[1748618784652,0.76612,2610.1,2610.0,0.76613]
[1748618785053,4.4765,2610.3,2610.0,0.76613]
[1748618785253,0.76611,2610.1,2609.9,0.76615]
[1748618785552,4.4765,2610.3,2609.8,1.2808]
[1748618785553,0.76608,2610.2,2610.0,0.76613]
[1748618785749,0.76611,2610.1,2609.9,0.76616]
[1748618786255,2.0432,2610.2,2610.0,0.76614]
[1748618786452,0.76611,2610.1,2610.0,0.76614]
[1748618786644,1.2771,2610.2,2609.9,0.76615]
[1748618786850,1.2771,2610.2,2609.8,1.2808]
[1748618787150,0.7661,2610.2,2609.8,1.2808]
[1748618787354,3.97387,2610.3,2610.2,0.76608]
[1748618787554,0.76609,2610.2,2610.1,0.76611]
[1748618787851,2.13153849,2610.2,2610.1,0.76611]
[1748618788053,3.46753849,2610.2,2610.0,0.76612]
[1748618788253,2.70144849,2610.2,2610.1,0.76611]
[1748618788447,1.336,2610.2,2610.1,0.76611]
[1748618788656,0.76601,2610.5,2610.4,0.76602]
[1748618788849,0.76601,2610.5,2610.3,0.76603]
[1748618789155,3.2078,2610.6,2610.5,0.76599]
[1748618789455,4.35258049,2611.1,2611.0,0.76585]
[1748618789644,4.35258049,2611.1,2610.9,0.76586]
[1748618789844,0.76588,2610.9,2610.8,1.99464231]
[1748618790047,0.76588,2610.9,2610.8,1.22875231]
[1748618790250,0.76587,2611.0,2610.9,0.76587]
[1748618790453,0.76587,2611.0,2610.8,1.99464231]
[1748618790753,0.76587,2611.0,2610.9,0.76588]
[1748618790954,0.76587,2611.0,2610.8,1.22875231]
[1748618790955,0.76588,2610.9,2610.8,1.99463231]
[1748618791646,1.2272,2611.0,2610.9,0.76587]
[1748618791647,0.76587,2611.0,2610.9,0.76587]
[1748618791848,0.76588,2610.9,2610.8,1.99464231]
[1748618792152,3.97368,2610.9,2610.8,0.00575231]
[1748618792653,3.97368,2610.9,2610.8,0.77166231]
[1748618792953,3.2078,2610.9,2610.8,0.77166231]
[1748618793158,3.97368,2610.9,2610.8,0.77166231]
[1748618793351,5.33930044,2610.9,2610.8,0.00575231]
[1748618793655,1.36562044,2610.9,2610.8,0.77166231]
[1748618794253,1.36562044,2610.9,2610.8,2.08796231]
[1748618796057,2.13150044,2610.9,2610.8,1.32205231]
[1748618796353,2.13150044,2610.9,2610.8,2.08796231]
[1748618797153,1.36562044,2610.9,2610.8,2.08796231]
[1748618797354,2.13150044,2610.9,2610.8,1.32205231]
[1748618797558,1.36562044,2610.9,2610.8,2.08796231]
[1748618797857,2.13150044,2610.9,2610.8,2.08796231]
[1748618798668,1.36562044,2610.9,2610.8,2.08796231]
[1748618798856,1.36562044,2610.9,2610.8,7.08796231]
[1748618799153,2.25075049,2611.2,2611.1,0.76582]
[1748618799454,2.25075049,2611.5,2611.4,0.76573]
[1748618799650,2.25075049,2611.5,2611.4,8.19853]
[1748618800049,2.25075049,2611.5,2611.4,4.99073]
[1748618800247,1.91429,2611.5,2611.1,4.9908]
[1748618800554,0.76579,2611.2,2611.1,4.225]
[1748618800748,0.76579,2611.2,2611.1,5.443]
[1748618802256,1.91441,2611.3,2610.8,0.00575231]
[1748618802552,0.76588,2610.9,2610.8,0.00575231]
[1748618803554,3.2078,2611.2,2610.8,0.00575231]
[1748618803750,0.76586,2611.0,2610.9,0.76586]
[1748618804256,0.76584,2611.1,2610.9,0.76586]
[1748618804458,0.76585,2611.0,2610.9,0.76586]
[1748618804763,0.76588,2610.9,2610.8,2.00594231]
[1748618805259,0.76588,2610.9,2610.8,5.46405231]
[1748618805453,0.76588,2610.9,2610.8,6.22996231]
[1748618805653,0.76588,2610.9,2610.8,5.46405231]
[1748618805954,3.2078,2611.2,2610.8,5.46405231]
[1748618806255,0.76588,2610.9,2610.8,5.46405231]
[1748618806454,0.76588,2610.9,2610.8,1.24005231]
[1748618806647,0.76588,2610.9,2610.8,5.46405231]
[1748618806852,0.76588,2610.9,2610.8,0.00575231]
[1748618807257,0.76588,2610.9,2610.8,2.06896231]
[1748618807652,0.76588,2610.9,2610.8,1.30305231]
[1748618808053,0.76587,2611.0,2610.9,0.76587]
[1748618808860,0.76588,2610.9,2610.8,4.22975231]
[1748618809160,0.76587,2611.0,2610.9,0.76586]
[1748618809658,0.76588,2610.9,2610.8,6.32434231]
[1748618809856,0.76588,2610.9,2610.8,0.77164231]
[1748618810052,0.76588,2610.9,2610.8,4.99564231]
[1748618810860,3.2078,2611.1,2610.8,4.22975231]
[1748618811052,0.76588,2610.9,2610.8,6.32434231]
[1748618811453,0.76587,2611.0,2610.9,0.76587]
[1748618812159,5.25024,2611.1,2611.0,0.76585]
[1748618812360,0.76586,2611.0,2610.9,0.76585]
[1748618812659,0.76586,2611.0,2610.9,2.11185]
[1748618812960,5.31662262,2611.1,2611.0,0.76585]
[1748618813157,4.55078262,2611.1,2611.0,0.76585]
[1748618813459,5.31660262,2611.1,2611.0,0.76585]
[1748618814058,0.76585,2611.0,2610.9,2.11185]
[1748618814258,0.76585,2611.0,2610.9,2.11188]
[1748618814652,0.76585,2611.0,2610.9,1.346]
[1748618815048,2.10883262,2611.0,2610.9,1.346]
[1748618815261,1.34298262,2611.0,2610.9,2.11188]
[1748618815760,2.10883262,2611.0,2610.9,2.11188]
[1748618816258,0.76588,2610.9,2610.8,4.99565231]
[1748618816762,0.76588,2610.9,2610.8,0.00575231]
[1748618817061,2.01828,2610.9,2610.8,0.00575231]
[1748618817355,3.36390644,2610.9,2610.8,0.77166231]
[1748618817556,3.36390644,2610.9,2610.8,0.00575231]
[1748618818357,2.01828,2610.9,2610.8,0.77166231]
[1748618818557,1.43276,2611.0,2610.9,0.76588]
[1748618818758,3.2078,2611.1,2610.8,0.00575231]
[1748618818961,0.76588,2610.9,2610.8,0.77163231]
[1748618819261,0.76588,2610.9,2610.8,4.17175231]
[1748618819762,0.76588,2610.9,2610.8,4.93766231]
[1748618819961,2.00228,2610.9,2610.8,4.93766231]
[1748618820459,3.97364,2611.1,2611.0,0.76585]
[1748618820955,3.2078,2611.1,2610.8,5.49315231]
[1748618821166,0.76588,2610.9,2610.8,0.00575231]
[1748618821357,0.76588,2610.9,2610.8,4.17175231]
[1748618822265,0.76588,2610.9,2610.8,0.00575231]
[1748618823855,0.76622,2609.8,2609.5,3.2078]
[1748618824060,0.76626,2609.6,2609.5,1.9537]
[1748618824357,0.76626,2609.6,2609.5,6.1197]
[1748618824658,5.12306,2610.2,2609.5,6.1197]
[1748618824859,0.00575231,2609.8,2609.7,0.76621]
[1748618825157,2.31e-06,2609.8,2609.7,0.76621]
[1748618825360,2.31e-06,2609.8,2609.7,24.01821]
[1748618826058,2.31e-06,2609.8,2609.7,28.18521]
[1748618826360,2.31e-06,2609.8,2609.7,28.18321]
[1748618827160,2.31e-06,2609.8,2609.7,5.76621]
[1748618827361,2.31e-06,2609.8,2609.7,9.93221]
[1748618827959,2.31e-06,2609.8,2609.7,9.93321]
[1748618829465,2.31e-06,2609.8,2609.7,28.17721]
[1748618830664,2.31e-06,2609.8,2609.7,4.93321]
[1748618835360,2.31e-06,2609.8,2609.7,0.76621]
[1748618835565,2.31e-06,2609.8,2609.7,4.93321]
[1748618836471,2.31e-06,2609.8,2609.4,0.6701]
[1748618836671,0.76621231,2609.8,2609.7,0.76623]
[1748618837071,2.31e-06,2609.8,2609.6,0.76625]
[1748618837369,1.2932,2609.7,2609.6,0.76625]
[1748618837960,2.31e-06,2609.8,2609.7,0.76622]
[1748618838165,2.31e-06,2609.8,2609.7,3.97402]
[1748618838361,2.31e-06,2609.8,2609.7,8.97402]
[1748618838969,2.31e-06,2609.8,2609.7,3.97402]
[1748618839174,2.31e-06,2609.8,2609.7,8.97402]
[1748618839478,2.31e-06,2609.8,2609.7,8.14102]
[1748618840471,2.31e-06,2609.8,2609.7,13.14102]
[1748618841570,2.31e-06,2609.8,2609.7,8.97402]
[1748618841765,2.31e-06,2609.8,2609.7,31.39602]
[1748618844369,2.31e-06,2609.8,2609.7,26.39602]
[1748618844570,2.31e-06,2609.8,2609.7,31.39602]
[1748618846276,2.31e-06,2609.8,2609.7,31.36402]
[1748618846977,2.31e-06,2609.8,2609.7,31.36602]
[1748618848675,2.31e-06,2609.8,2609.7,8.97402]
[1748618848881,2.31e-06,2609.8,2609.7,31.35202]
[1748618852881,2.31e-06,2609.8,2609.7,3.97402]
[1748618853185,2.31e-06,2609.8,2609.7,8.11902]
[1748618854380,2.0451,2610.5,2610.4,0.76602]
[1748618854685,1.5453,2610.5,2610.4,4.91102]
[1748618855980,1.2894,2610.5,2610.4,4.91102]
[1748618856883,1.9142,2611.6,2610.4,4.91102]
[1748618856884,3.2078,2612.2,2611.9,0.76558]
[1748618857088,1.2534,2612.1,2611.7,0.00575231]
[1748618857587,1.2534,2612.1,2611.9,0.76558]
[1748618857777,0.76559,2611.9,2611.7,0.00575231]
[1748618857981,1.2162,2611.9,2611.8,0.76561]
[1748618858180,6.2162,2611.9,2611.8,0.76561]
[1748618858781,1.2162,2611.9,2611.8,0.76561]
[1748618860082,6.2162,2611.9,2611.8,0.76561]
[1748618860785,6.2162,2611.9,2611.7,0.00575231]
[1748618861089,0.76561,2611.8,2611.7,0.00575231]
[1748618861288,1.3365,2611.8,2611.7,0.00575231]
[1748618861483,6.3365,2611.8,2611.7,0.00575231]
[1748618861988,0.76565,2611.7,2611.4,0.76572]
[1748618862192,1.3365,2611.6,2611.1,5.12231]
[1748618862392,1.3365,2611.6,2611.4,0.76573]
[1748618862791,6.3365,2611.6,2611.5,0.7657]
[1748618863090,1.3365,2611.6,2611.5,0.7657]
[1748618863282,6.3365,2611.6,2611.5,0.7657]
[1748618864192,6.3365,2611.6,2611.5,0.75927826]
[1748618864690,1.3365,2611.6,2611.5,0.75927826]
[1748618865389,2.25075049,2613.1,2611.6,1.91418]
[1748618865586,0.6718,2613.0,2612.9,0.76527]
[1748618866198,0.6718,2613.0,2612.9,4.90927]
[1748618866992,0.6718,2613.0,2612.9,0.76527]
[1748618867993,1.9672,2613.0,2612.9,0.76527]
[1748618872892,6.9672,2613.0,2612.9,0.76529]
[1748618873094,1.9672,2613.0,2612.9,0.76529]
[1748618875901,0.6718,2613.0,2612.9,0.76529]
[1748618876102,0.6735,2613.3,2613.2,0.7652]
[1748618878402,5.6735,2613.3,2613.2,0.7652]
[1748618878799,0.6735,2613.3,2613.2,0.7652]
[1748618879902,3.8813,2613.3,2613.2,0.7652]
[1748618880403,3.8813,2613.3,2613.1,0.76521]
[1748618880706,1.3026,2613.2,2613.1,0.76523]
[1748618881299,6.3026,2613.2,2612.8,4.225]
[1748618881499,0.6364,2613.1,2613.0,0.76525]
[1748618881708,1.939,2613.1,2613.0,0.76525]
[1748618882306,0.6364,2613.1,2613.0,0.76525]
[1748618882701,3.2078,2614.0,2613.2,0.7652]
[1748618882998,0.6717,2613.6,2613.2,4.225]
[1748618883205,0.6717,2613.6,2613.5,0.76511]
[1748618883403,5.6717,2613.6,2613.5,0.76511]
[1748618884002,0.6717,2613.6,2613.5,0.76511]
[1748618887011,3.2078,2614.0,2613.9,0.765]
[1748618887400,1.3051,2614.3,2614.2,0.76491]
[1748618887805,6.3051,2614.3,2614.2,0.76491]
[1748618888198,6.3051,2614.3,2614.0,0.76495]
[1748618888404,0.76493,2614.2,2614.1,0.76494]
[1748618888904,0.76498,2614.0,2613.9,0.76498]
[1748618889103,3.2078,2614.0,2613.9,0.76498]
[1748618889304,8.2078,2614.0,2613.9,0.76498]
[1748618889507,5.0,2614.0,2613.9,0.76498]
[1748618890614,0.76491,2614.2,2614.1,0.76491]
[1748618890807,1.91229,2614.2,2613.4,6.13686]
[1748618891008,3.97281,2613.9,2613.8,0.76502]
[1748618891206,3.2078,2613.9,2613.3,4.224]
[1748618891507,0.76505,2613.8,2613.7,0.76506]
[1748618891708,2.08562664,2613.9,2613.8,0.76503]
[1748618891912,7.08562664,2613.9,2613.8,0.76503]
[1748618892109,6.32060664,2613.9,2613.8,0.76503]
[1748618892504,1.32060664,2613.9,2613.8,0.76503]
[1748618894104,3.2078,2614.0,2613.9,0.765]
[1748618894510,3.2078,2614.0,2613.7,1.3055]
[1748618894706,8.2078,2614.0,2613.1,3.15649]
[1748618894913,3.97292,2613.5,2613.4,0.76514]
[1748618895115,3.2078,2613.5,2613.4,0.76514]
[1748618896724,0.76496,2614.1,2613.5,1.9128]
[1748618897021,5.12016,2614.1,2613.6,5.5611]
[1748618897215,1.2455,2614.0,2613.7,0.76503]
[1748618897515,0.765,2613.9,2613.8,1.3392]
[1748618897715,3.23623093,2613.9,2613.5,3.2078]
[1748618897918,3.2078,2613.7,2613.4,4.224]
[1748618898217,2.01055,2613.8,2613.4,4.224]
[1748618898712,1.2455,2613.8,2613.4,4.224]
[1748618899018,1.40986,2613.7,2613.6,0.76509]
[1748618899214,1.96879731,2613.7,2613.6,0.76509]
[1748618899413,0.76509,2613.6,2613.3,1.91294]
[1748618899614,1.2455,2613.6,2613.5,0.76509]
[1748618899921,0.76513,2613.5,2613.4,0.76514]
[1748618900119,2.01061,2613.6,2613.5,0.76512]
[1748618900414,2.01061,2613.6,2613.1,3.2078]
[1748618900415,6.2455,2613.6,2613.1,3.2078]
[1748618900616,0.6302,2613.5,2613.1,3.2078]
[1748618900815,1.3008,2613.4,2613.1,3.2078]
[1748618901022,2.06597,2613.4,2613.3,0.76518]
[1748618901325,2.25657,2613.4,2613.3,0.76518]
[1748618901518,6.4914,2613.4,2613.3,0.76518]
[1748618901717,7.81563605,2613.4,2613.3,0.76518]
[1748618901918,1.51483605,2613.4,2613.3,0.76518]
[1748618903017,1.51483605,2613.4,2613.3,2.03188]
[1748618903321,0.1906,2613.4,2613.3,2.03188]
[1748618905030,0.95575,2613.4,2613.3,1.2667]
[1748618905322,0.1906,2613.4,2613.3,2.03188]
[1748618908923,3.2078,2614.0,2613.9,0.765]
[1748618909225,0.01376,2614.4,2614.3,0.76488]
[1748618910124,1.33645429,2614.4,2614.3,0.76488]
[1748618912035,1.33645429,2614.4,2614.3,2.05688]
[1748618912831,0.01376,2614.4,2614.3,2.05688]
[1748618913933,0.01376,2614.4,2614.2,3.2078]
[1748618914234,0.01376,2614.4,2614.3,0.76488]
[1748618914436,0.77861,2614.4,2614.3,0.76488]
[1748618914635,5.01376,2614.4,2614.3,0.76488]
[1748618914836,5.77861,2614.4,2614.3,0.76488]
[1748618915030,0.76488,2614.3,2614.2,3.97271]
[1748618915238,0.76491,2614.2,2614.1,0.00574053]
[1748618915630,5.76491,2614.2,2614.1,0.00574053]
[1748618915836,7.09031,2614.2,2614.1,0.00574053]
[1748618916241,7.09031,2614.2,2614.1,0.77068053]
[1748618916835,3.22156,2614.4,2614.3,0.76488]
[1748618917042,0.01376,2614.4,2614.3,0.76488]
[1748618918937,0.6649,2614.6,2614.2,1.2337]